Cogmind - Beta 12 @@@ ROGUE MODE // 2023.03.03 @ 12:35:26 Player: Lord Zigzarog Result: Destroyed by G-50 Soldier with Heavy Laser Performance ------------- Evolutions (2) 1000 Regions Visited (5) 1000 Robots Destroyed (77) 385 Value Destroyed (2251) 2251 Prototype IDs (7) 140 Alien Tech Used (0) 0 Bonus (0) 0 TOTAL SCORE: 4776 Bonus ------- None Cogmind --------- Core Integrity 0/550 Matter 250/300 Energy 310/335 System Corruption 5% Temperature Warm (114) Movement Treading (160) Location -8/Storage Parts ------- > --- POWER (2) -------- Deuterium Engine Light Nuclear Core > --- PROPULSION (3) --- Light Treads Light Treads > --- UTILITY (4) ------ Medium Storage Unit Trap Scanner Hacking Suite System Shield > --- WEAPON (2) ------- Compact Ion Cannon Heavy Assault Rifle > --- INVENTORY (10) --- Large Matter Pod (150) Recoil Stabilizer Beam Rifle Particle Gun Flak Cannon Heavy Flail Peak State ------------ > --- POWER ------------ Micro Nuclear Core Micro Nuclear Core > --- PROPULSION ------- Aluminum Leg Aluminum Leg > --- UTILITY ---------- Medium Storage Unit Hardlight Generator Hacking Suite System Shield > --- WEAPON ----------- Flak Cannon Heavy Flail > --- INVENTORY -------- Cooled Ion Engine Deuterium Engine Light Nuclear Core Micro Nuclear Core Large Matter Pod Heavy Assault Rifle Heavy Assault Rifle Rocket Launcher [Rating: 28] Favorites ----------- Power Light Ion Engine Engine Light Ion Engine Power Core Micro Nuclear Core Propulsion Aluminum Leg Treads Light Treads Leg Aluminum Leg Wheel Armored Wheel Utility Medium Storage Unit Device Sensor Array Storage Medium Storage Unit Processor Visual Processing Unit Hackware Hacking Suite Weapon Autogun Energy Gun EM Shotgun Energy Cannon Compact Ion Cannon Ballistic Gun Autogun Ballistic Cannon Flak Cannon Launcher Rocket Launcher Impact Weapon Heavy Flail Build | -11 -10 -9 -9 -8 -8 ------- Run | Jun Mat Mat Min Mat Sto Slots Evolved 4 | . . 2 . 2 . Power 1 | . . . . 1 . Propulsion 1 | . . 1 . . . Utility 2 | . . 1 . 1 . Weapon . | . . . . . . Parts Attached 100 | 6 15 22 13 27 17 Power 20 | 1 1 4 . 10 4 Engine 13 | 1 1 3 . 6 2 Core 7 | . . 1 . 4 2 Reactor . | . . . . . . Propulsion 16 | 2 3 2 2 4 3 Treads 2 | . . . . . 2 Leg 8 | 2 . 1 2 2 1 Wheel 6 | . 3 1 . 2 . Hover . | . . . . . . Flight . | . . . . . . Utility 21 | 1 5 4 6 4 1 Device 10 | . 2 3 3 1 1 Storage 5 | 1 1 . 3 . . Processor 4 | . 2 1 . 1 . Hackware 2 | . . . . 2 . Protection . | . . . . . . Artifact . | . . . . . . Weapon 43 | 2 6 12 5 9 9 Energy Gun 11 | 2 . 3 3 1 2 Energy Cannon 2 | . . . . . 2 Ballistic Gun 16 | . 6 5 . 3 2 Ballistic Cannon 3 | . . . . 3 . Launcher 7 | . . 4 2 . 1 Special Weapon . | . . . . . . Impact Weapon 4 | . . . . 2 2 Slashing Weapon . | . . . . . . Piercing Weapon . | . . . . . . Special Melee Weapon . | . . . . . . Unidentified Prototypes 5 | . . 1 1 2 1 Corrupted Parts 3 | . . 1 . 1 1 System Corruption 11 | . . 6 . 4 1 Parts Lost 28 | . . 7 3 12 6 Power 6 | . . 2 . 2 2 Propulsion 10 | . . 2 . 5 3 Utility 3 | . . 1 . 2 . Weapon 9 | . . 2 3 3 1 Highest Loss Streak 6 | . . 4 3 6 3 To Critical Strikes . | . . . . . . Average Slot Usage (%) 83 | . 96 76 89 79 74 Engine 9 | . 13 9 11 6 6 Core 2 | . . . . 10 3 Treads 1 | . . . . . 8 Leg 11 | . 8 . 24 15 10 Wheel 7 | . 19 13 . . . Device 10 | . 4 20 10 5 2 Storage 13 | . 14 11 20 11 9 Processor 1 | . 7 . . 1 . Hackware 4 | . . . . 12 18 Energy Gun 4 | . 6 6 5 1 3 Ballistic Gun 10 | . 21 10 11 4 2 Ballistic Cannon 1 | . . . . 4 2 Launcher 3 | . . 5 5 3 . Naked Turns . | . . . . . . Heaviest Build 36 | 14 23 29 31 36 33 Greatest Support 40 | 20 24 24 30 30 40 Greatest Overweight (x) 9 | 3 1 6 1 9 2 Average Overweight (x) . | . . 1 . . . Largest Inventory Capacity 10 | 8 10 10 10 10 10 Average Capacity 9 | 7 9 10 10 10 10 Most Carried 10 | 2 10 9 6 10 8 Average Carried 5 | 1 5 6 4 7 5 Final Capacity 10 | 8 10 10 10 10 10 Final Carried 8 | 2 8 6 6 6 6 Class Distribution -------------------- 51% | Mutant 25% | Scavenger-Mutant 23% | Hacker-Mutant Dominant Class ---------------- Mutant | -10/Materials Mutant | -9/Materials Scavenger-Mutant | -9/Mines Hacker-Mutant | -8/Materials Hacker-Mutant | -8/Storage Resources | -11 -10 -9 -9 -8 -8 ----------- Run | Jun Mat Mat Min Mat Sto Matter Collected 2083 | 184 359 578 284 408 270 Remotely . | . . . . . . Salvage Created 2697 | . 470 861 260 587 519 Parts 153 | . 41 50 14 30 18 Haulers Intercepted 1 | . 1 . . . . Recyclers Shooed 3 | . 1 1 . . 1 Parts Field Recycled . | . . . . . . Retrieved Matter . | . . . . . . Parts Self-Destructed . | . . . . . . Prevented . | . . . . . . Kills | -11 -10 -9 -9 -8 -8 ------- Run | Jun Mat Mat Min Mat Sto Combat Hostiles Destroyed 60 | . 12 15 9 15 9 Melee 3 | . . . . 2 1 Guns 33 | . 12 8 1 9 3 Cannons 7 | . . . . 3 4 AOE 16 | . . 7 8 1 . Classes Destroyed 11 | . 6 3 . 2 . Worker 1 | . . . . 1 . Builder 6 | . 1 2 . 3 . Tunneler 1 | . 1 . . . . Hauler 1 | . 1 . . . . Recycler 3 | . . 1 1 . 1 Watcher 5 | . 3 2 . . . Swarmer 14 | . 6 . 4 4 . Grunt 38 | . 6 13 5 8 6 Duelist 2 | . . 1 . 1 . Sentry 5 | . . 1 . 1 3 Hunter 1 | . . . . 1 . Best Kill Streak 6 | . 3 4 4 6 3 Combat Bots Only 5 | . 3 4 4 5 2 Max Kills in Single Turn 3 | . 1 3 3 1 1 Gunslinging . | . . . . . . Exploded 3 | . . 3 3 1 . Melee 1 | . . . . 1 1 Uniques/NPCs Destroyed . | . . . . . . Combat | -11 -10 -9 -9 -8 -8 -------- Run | Jun Mat Mat Min Mat Sto Damage Taken 4371 | . 420 1058 264 1393 1236 Core 1017 | . 112 301 53 312 239 Absorbed by Shields 16 | . . . . 16 . Regen/Repaired (Parts) 35 | . 35 . . . . Core Remaining (%) 55 | 100 55 . 11 . . Volleys Fired 215 | . 44 55 16 60 40 Largest 2 | . 2 2 2 2 2 Hottest 113 | . 100 90 65 78 113 Shots Fired 334 | . 88 77 24 85 60 Gun 264 | . 88 63 17 63 33 Cannon 43 | . . . . 18 25 Launcher 27 | . . 14 7 4 2 Special . | . . . . . . Kinetic 186 | . 54 41 12 59 20 Thermal 94 | . 34 . . 22 38 Explosive 11 | . . . 5 4 2 Electromagnetic 43 | . . 36 7 . . Robot Hit Streak 10 | . 6 8 6 10 7 Robot Miss Streak 5 | . 5 3 1 5 3 Penetration Max . | . . . . . . Secondary Targets 3 | . 2 . . 1 . Max Gunslinging Chain 1 | . 1 . . 1 . Shots Hit Robots 217 | . 48 49 11 65 44 Core Hits 119 | . 23 32 13 37 14 Critical Kills 1 | . 1 . . . . Critical Parts Destroyed 3 | . . . . 2 1 Critical Strikes 6 | . 2 . . 3 1 Burn 2 | . 1 . . 1 . Destroy 2 | . 1 . . 1 . Smash 2 | . . . . 1 1 Melee Attacks 15 | . . . . 8 7 Impact 15 | . . . . 8 7 Slashing . | . . . . . . Piercing . | . . . . . . Sneak Attacks 2 | . . . . 1 1 Combat Hostiles 1 | . . . . . 1 Follow-up Attacks . | . . . . . . Damage Inflicted 5439 | . 720 1378 722 1421 1198 Guns 2617 | . 720 666 143 758 330 Cannons 729 | . . . . 263 466 Explosions 1675 | . . 700 576 214 185 Melee 394 | . . . . 177 217 Ramming 24 | . . 12 3 9 . Kinetic 1740 | . 462 388 68 676 146 Thermal 1363 | . 258 45 65 345 650 Explosive 893 | . . . 494 214 185 Electromagnetic 1025 | . . 933 92 . . Impact 394 | . . . . 177 217 Slashing . | . . . . . . Piercing . | . . . . . . Highest Corruption 6 | . 3 6 6 4 5 Average Corruption 5 | . 2 6 6 4 4 Corruption Purged . | . . . . . . Corruption Blocked . | . . . . . . Effects 55 | . 6 2 29 . 18 Message Errors 13 | . 1 . 6 . 6 Matter Fused 15 | . 2 . 7 . 6 Heat Flow Errors 9 | . 2 1 4 . 2 Energy Discharges 2 | . 1 . . . 1 Parts Rejected 2 | . . . 1 . 1 Parts Fused 2 | . . . 1 . 1 Data Loss (minor) 4 | . . 1 3 . . Data Loss (major) 1 | . . . . . 1 Misfires 4 | . . . 4 . . Alerts 3 | . . . 3 . . Overload Shots . | . . . . . . Overflow Damage 270 | . . 34 11 128 97 Projectiles 6 | . . . . . 6 Explosions 56 | . . 34 11 11 . Melee 208 | . . . . 117 91 Knockbacks 6 | . . . . 6 . Impact 1 | . . . . 1 . Kinetic 5 | . . . . 5 . Secondary . | . . . . . . Self-Inflicted Damage 168 | . . 102 . 66 . Shots 7 | . . 5 . 2 . Rammed 2 | . . 2 . . . Targets Rammed 6 | . . 3 1 2 . Kicked 4 | . . 1 1 2 . Crushed . | . . . . . . Highest Temperature 351 | . 351 166 342 180 252 Average Temperature 88 | . 116 34 94 57 103 Received Heat Transfer 1686 | . 102 408 168 414 594 Effects 4 | . 1 . . . 3 Energy Bleed 1 | . 1 . . . . Interference 3 | . . . . . 3 Siege Activations . | . . . . . . Robots Corrupted . | . . . . . . Combat Hostiles . | . . . . . . Parts Fried 5 | . . 1 . 3 1 Impact Corruptions 6 | . . . . 4 2 Robots Melted . | . . . . . . Combat Hostiles . | . . . . . . Parts Melted 4 | . 1 . . . 3 Heat Transferred 2814 | . 851 100 50 740 1073 Parts Sabotaged . | . . . . . . Parts Stolen . | . . . . . . Parts Stripped . | . . . . . . Power Chain Reactions 3 | . . 2 1 . . Missiles Intercepted . | . . . . . . Alert | -11 -10 -9 -9 -8 -8 ------- Run | Jun Mat Mat Min Mat Sto Peak Influence 326 | . 250 278 202 326 207 Initial 89 | . . 42 19 20 89 Average 97 | . 94 96 42 165 108 Maximum Alert Level 1 | . 1 1 1 1 1 Low Security (%) 89 | 100 93 93 99 57 99 Level 1 10 | . 6 6 . 42 . Level 2 . | . . . . . . Level 3 . | . . . . . . Level 4 . | . . . . . . Level 5 . | . . . . . . High Security . | . . . . . . Max Security . | . . . . . . Squads Dispatched 14 | . 4 4 . 3 3 Investigation 8 | . 2 2 . 2 2 Extermination . | . . . . . . Reinforcement 6 | . 2 2 . 1 1 Assault . | . . . . . . Garrison . | . . . . . . Intercept . | . . . . . . Searches Triggered . | . . . . . . Construction Impeded 2 | . . 2 . . . Haulers Reinforced . | . . . . . . Active Scanning Responses . | . . . . . . Cargo Convoy Interrupts . | . . . . . . Stealth | -11 -10 -9 -9 -8 -8 --------- Run | Jun Mat Mat Min Mat Sto Distress Signals 4 | . 2 1 . 1 . Communications Jammed . | . . . . . . Distress Signals . | . . . . . . Times Spotted 104 | . 20 33 7 27 17 Peak Tracking Total 8 | . 3 4 3 8 4 Tactical Retreats 17 | . 2 8 . 7 . Traps | -11 -10 -9 -9 -8 -8 ------- Run | Jun Mat Mat Min Mat Sto Traps Triggered 7 | . 6 . . 1 . Indirectly . | . . . . . . Trap Hack Attempts . | . . . . . . Triggered . | . . . . . . Disarmed . | . . . . . . Reprogrammed . | . . . . . . Reused . | . . . . . . Traps Extracted . | . . . . . . Installed . | . . . . . . Triggered . | . . . . . . Machines | -11 -10 -9 -9 -8 -8 ---------- Run | Jun Mat Mat Min Mat Sto Machines Disabled 6 | . . 3 . 1 2 Max in Single Turn 2 | . . 2 . 1 1 Machines Repaired . | . . . . . . Machines Sabotaged . | . . . . . . Overloaded Fab Kills . | . . . . . . Hacking | -11 -10 -9 -9 -8 -8 --------- Run | Jun Mat Mat Min Mat Sto Machines Accessed 20 | . 8 4 1 4 3 Terminals 15 | . 6 3 . 3 3 Fabricators . | . . . . . . Repair Stations 1 | . 1 . . . . Recycling Units 2 | . 1 . . 1 . Scanalyzers 1 | . . 1 . . . Garrison Access . | . . . . . . Total Hacks 68 | . 28 15 1 17 7 Successful 41 | . 17 7 1 13 3 Failed 27 | . 11 8 . 4 4 Catastrophic 3 | . . 2 . 1 . Database Lockouts . | . . . . . . Manual . | . . . . . . Terminals 53 | . 23 12 . 11 7 Fabricators . | . . . . . . Repair Stations 3 | . 3 . . . . Recycling Units 8 | . 2 . . 6 . Scanalyzers 3 | . . 3 . . . Garrison Access . | . . . . . . Terminal Hacks 31 | . 15 5 1 7 3 Record 7 | . 3 4 . . . Prototype ID Bank 1 | . 1 . . . . Open Door 2 | . . . 1 . 1 Emergency Access Points 1 | . 1 . . . . Terminal Index 1 | . 1 . . . . Alert Level 3 | . 2 . . 1 . Locate Traps 4 | . 2 . . . 2 Dispatch Records 3 | . 1 1 . 1 . Maintenance Status 1 | . . . . 1 . Investigation Status 1 | . 1 . . . . Assault Status 2 | . 1 . . 1 . Hauler Manifests 1 | . 1 . . . . Registered Components 2 | . 1 . . 1 . Zone Layout 2 | . . . . 2 . Fabricator Hacks . | . . . . . . Repair Station Hacks 2 | . 2 . . . . Scan Component 1 | . 1 . . . . Repair 1 | . 1 . . . . Recycling Unit Hacks 6 | . . . . 6 . Recycle Component 1 | . . . . 1 . Process 2 | . . . . 2 . Report Inventory 1 | . . . . 1 . Retrieve Matter 2 | . . . . 2 . Scanalyzer 2 | . . 2 . . . Insert Component 1 | . . 1 . . . Analyze 1 | . . 1 . . . Garrison Access Hacks . | . . . . . . Unauthorized Hacks . | . . . . . . Terminals . | . . . . . . Fabricators . | . . . . . . Repair Stations . | . . . . . . Recycling Units . | . . . . . . Scanalyzers . | . . . . . . Garrison Access . | . . . . . . Data Cores Recovered . | . . . . . . Used . | . . . . . . Hacking Detections 16 | . 8 4 . 2 2 Full Trace Events 6 | . 2 1 . 1 2 Feedback Events . | . . . . . . Feedback Blocked . | . . . . . . Robot Schematics Acquired . | . . . . . . Robots Built . | . . . . . . Authchips . | . . . . . . Time . | . . . . . . Total Robot Build Rating . | . . . . . . Part Schematics Acquired 1 | . . 1 . . . Parts Built . | . . . . . . Authchips . | . . . . . . Time . | . . . . . . Total Part Build Rating . | . . . . . . Parts Repaired 1 | . 1 . . . . Time 26 | . 26 . . . . Parts Recycled 1 | . . . . 1 . Recycled Matter 58 | . . . . 58 . Retrieved Matter 58 | . . . . 58 . Retrieved Components . | . . . . . . Parts Scanalyzed 1 | . . 1 . . . Part Schematics Acquired 1 | . . 1 . . . Parts Damaged . | . . . . . . Bothacking | -11 -10 -9 -9 -8 -8 ------------ Run | Jun Mat Mat Min Mat Sto Used RIF Installer . | . . . . . . Robots Hacked . | . . . . . . Non-combat . | . . . . . . Combat . | . . . . . . Robot Hacks Applied . | . . . . . . Relay Couplers Released . | . . . . . . Fabnet Peak Effective % . | . . . . . . Robots Rewired . | . . . . . . Allies Hacked . | . . . . . . Hacks Repelled . | . . . . . . Allies | -11 -10 -9 -9 -8 -8 -------- Run | Jun Mat Mat Min Mat Sto Total Allies . | . . . . . . Largest Group . | . . . . . . Highest-Rated Group . | . . . . . . Highest-Rated Ally . | . . . . . . Total Orders . | . . . . . . Ally Attacks . | . . . . . . Total Damage . | . . . . . . Kills . | . . . . . . Allies Corrupted . | . . . . . . Allies Melted . | . . . . . . Intel | -11 -10 -9 -9 -8 -8 ------- Run | Jun Mat Mat Min Mat Sto Robot Analysis Total . | . . . . . . Derelict Logs Recovered 1 | . . . 1 . . Drone Launches 16 | . . . 16 . . Drone Recoveries . | . . . . . . Exploration | -11 -10 -9 -9 -8 -8 ------------- Run | Jun Mat Mat Min Mat Sto Turns Passed 5010 | 72 912 1379 1033 828 786 Spaces Moved 2559 | 47 701 587 596 360 268 Core 50 | 8 . 9 . 33 . Treads 193 | . . . . . 193 Legs 1245 | 39 167 49 596 319 75 Wheels 1071 | . 534 529 . 8 . Hover . | . . . . . . Flight . | . . . . . . Fastest Speed 50 | 50 90 90 120 95 120 Average Speed 136 | 124 97 114 159 164 198 Slowest Speed 500 | 200 120 350 190 500 260 Overloaded Moves . | . . . . . . Propulsion Burnouts . | . . . . . . Robots Hopped . | . . . . . . Cave-ins Triggered . | . . . . . . Exploration Rate (%) 51 | 3 94 46 99 30 34 Regions Visited 5 Branch Regions 2 Pre-discovered Areas 1 | . . . 1 . . Known Exits Taken . | . . . . . . Unknown Exits Taken 5 | 1 1 1 1 1 . Scrap Searched 1 | . . . 1 . . Spaces Dug 1 | . . . . 1 . Terrain Destroyed 133 | . . 11 49 45 28 Melee 1 | . . . . 1 . Projectile 4 | . . . . . 4 AOE 128 | . . 11 49 44 24 Terrain Rammed . | . . . . . . Walls Destroyed . | . . . . . . Machines Disabled . | . . . . . . Actions | -11 -10 -9 -9 -8 -8 --------- Run | Jun Mat Mat Min Mat Sto Total 3741 | 60 853 1220 661 494 453 Wait 755 | . 66 542 26 12 109 Move 2554 | 46 700 586 595 359 268 Hop . | . . . . . . Pick Up 71 | 8 21 7 7 18 10 Fast Attach 1 | . . . . 1 . Attach 56 | 6 6 11 10 11 12 Detach 10 | . . 4 3 1 2 Swap 43 | . 9 11 3 15 5 Drop 15 | . 7 1 . 7 . Fire 215 | . 44 55 16 60 40 Melee 15 | . . . . 8 7 Ram 2 | . . 2 . . . Kick 4 | . . 1 1 2 . Crush . | . . . . . . Escape Stasis . | . . . . . . Rewire . | . . . . . . Trap . | . . . . . . Miscellaneous . | . . . . . . Route ------- -11/Junkyard -10/Materials (discovered 4 exits: *Mat x3 / [*Min]) -9/Materials (discovered 2 exits: *Mat / *Min) -9/Mines (discovered 2 exits: *Mat x2) -8/Materials -8/Storage History --------- Turn | Location | Event 16 | -11/Junkyard | Discovered new exit (range 15) 73 | -11/Junkyard | Entered Materials 304 | -10/Materials | Build established: Mutant 427 | -10/Materials | Repaired Ion Engine 514 | -10/Materials | Discovered new exit (range 16) 615 | -10/Materials | Discovered new exit (range 18) 714 | -10/Materials | Discovered new exit (range 12) 971 | -10/Materials | Discovered new exit (range 13) 985 | -10/Materials | Entered another Materials area 985 | -9/Materials | Evolved 2 slots: Propulsion x1, Utility x1 1654 | -9/Materials | Discovered new exit (range 14) 2100 | -9/Materials | Discovered new exit (range 12) 2215 | -9/Materials | Core integrity fell below 50% 2258 | -9/Materials | Lost 4 parts (1n1u2w) 2364 | -9/Materials | Entered Mines 2371 | -9/Mines | Core integrity fell below 20% 2419 | -9/Mines | Lost 3 parts (3w) 2683 | -9/Mines | Found the Drone Emporium 2696 | -9/Mines | Found Prototype Device 2698 | -9/Mines | Identified Decoy Drone Bay 2873 | -9/Mines | Learned Materials stockpile data 2916 | -9/Mines | Received a Rocket Launcher from a helpful Derelict 2946 | -9/Mines | Learned location of Storage (-8) 3100 | -9/Mines | Build established: Scavenger-Mutant 3220 | -9/Mines | Discovered new exit (range 7) 3364 | -9/Mines | Discovered new exit (range 10) 3397 | -9/Mines | Entered Materials 3397 | -8/Materials | Evolved 2 slots: Power x1, Utility x1 3956 | -8/Materials | Lost 3 parts (2n1u) 4115 | -8/Materials | Build established: Hacker-Mutant 4163 | -8/Materials | Core integrity fell below 50% 4186 | -8/Materials | Discovered new exit (range 6) 4218 | -8/Materials | Lost 6 parts (2p2n2w) 4225 | -8/Materials | Entered Storage 4498 | -8/Storage | Lost 3 parts (1p2n) 4513 | -8/Storage | Core integrity fell below 20% 5011 | -8/Storage | Destroyed by G-50 Soldier with Heavy Laser Last Messages --------------- U-05 Engineer lays Concrete. Acquired Lgt. Nuclear Core. U-05 Engineer lays Concrete. Acquired 22 matter. U-05 Engineer lays Concrete. U-05 Engineer builds a Wall. Acquired 3 matter. U-05 Engineer lays Concrete. U-05 Engineer builds a Wall. U-05 Engineer lays Concrete. System corrupted: Matter fused (-7). 1KAWDRW0 Z0B%9DRPX/3A6M%DLO,Z2RE K-01 Serf collects debris. R-06 Scavenger collects Aluminum Leg. 63IL,GEZ5CY627|YZYTVI#LHJ0CUB2#MA/S%W=7% K-01 Serf collects debris. A-02 Transporter destroyed. Rocket Launcher destroyed. U-05 Engineer lays Concrete. Critical hit (Burn: +37). Map ----- +----------------------------------------------------+ | ??????????????????????????????????????????? | | ??????????????????????????????????????????? | | ??????????????????????????????????????????? | | ??????????????????????????????????????????? | | ??????????????????????????????????????????? | | ??????????????????????????????????????????? | | ??????????????????????????????????????????? | | ??????????????????????????????????????????? | | ??????????????????????????????????????????? | | ??????????????????????????????????????????? | | ??????????????????????? # ??????????????? | | ?????????????????????# ?????????????? | | ?????????????????????# ?????????????? | | ?????????????????????# ?????????????? | | ?????????????????????# kg ?????????????? | | ?????????????????????# gg ??????????????? | | ?????????????????????# g ??????????????? | | ????????????????????## ??????????????? | | ????????????????????? ??????????????? | | ?????????????????????# ;???????????????? | | ????????????????????## ???????????????? | | ????????????????????# ???????????????? | | ?????????????????????# ???????????????? | | ??????????????????????# uu#???????????????? | | ??????????????????????# #???????????????? | | ??????????????????????# @#???????????????? | | ??????????????????????#*u #???????????????? | | ??????????????????????#[[ #???????????????? | | ??????????????????????#%[=###########?????? | | ??????????????????????#[[ # #?????? | | ??????????????????????#[ # """" #?????? | | ??????????????????????# # "??" #?????? | | ??????????????????????#u # "??" #?????? | | ????????????########### # "??" #?????? | | ????????????# ## + "??" #?????? | | ????????????# ## # """" #?????? | | ????????????# ## # #?????? | | ??#?????????# +m ###+############? | | ? ?????????# ## #?# #?# #? | | "???????? ?# ## #?# #?# """"" #? | | "???????? #####+##### ### ### """"" #? | | ??????????? ^! # "" " #? | | ????????????? [ %^ %"% = #? | | ????????????? [[ # "= "" #? | | ???????????????# [[ # """"" #? | | ???????????????#^ # """"" #? | | ???????????????# # [ #? | | ???????????????# ##""T""! #? | | ################ %! ##"""""#"#? | | ##########? | +----------------------------------------------------+ Best States ------------- Heat Dissipation 31 Energy Generation 25 Energy Capacity 335 Matter Stores 450 Matter Capacity 450 Sight Range 18 Robot Scan Range 14 Terrain Scan Density 10 ECM Strength 1 Evasion (%) 55 Recoil Reduction 2 Offensive Hacking 10 Defensive Hacking 10 Trap Extractor Capacity 4 Item Schematics ----------------- Arm. Wheel | -9/Materials | Scanalyzed Robot Schematics ------------------ None Fabricated ------------ Nothing Alien Tech Used ----------------- None Achievements -------------- I Spy Release The Drones! Challenges ------------ None Game ------ Seed BattleSpacefoldMagmablaster Manual? 0 Play Time 01:27:14 Cumulative 10.2 hours Start 2023.03.03 @ 11:04:26 End 2023.03.03 @ 12:35:26 Sessions 1 Manual Loads 0 Difficulty Rogue Special Mode None Game No. 10 Rogue 9 Adventurer 1 Explorer 0 Win Type - Total 0 Types 0/0/0/0/0/0/0/0/0 Lore% 7 Gallery% 11 Achievement% 12 Wizard Run 0 Options --------- ASCII 0 Keyboard 0 Movement Mouse Keybinds 0 Fullscreen 1 Font 18/X11Bold Map View 76x50 Tactical HUD 0 Map Filters NONE Filters NONE Steam 1 RUN: fce5a166-29c9-4122-b309-56f62df7d16f